[Event "Late-Titled-Tuesday-Blitz-November-28-2023"]
[Site "Chess.com"]
[Date "2023.11.28"]
[Round "5"]
[White "Romadk"]
[Black "reevecanada"]
[Result "0-1"]
[WhiteElo "2446"]
[BlackElo "2638"]
[TimeControl "180+1"]
[EndTime "14:50:58 PST"]
[Termination "reevecanada won by checkmate"]

1. d4 {[%clk 0:03:00.9]} 1... e5 {[%clk 0:02:58.8]} 2. e4 {[%clk 0:02:51.4]}
2... exd4 {[%clk 0:02:56.7]} 3. c3 {[%clk 0:02:51.7]} 3... dxc3 {[%clk
0:02:56.3]} 4. Bc4 {[%clk 0:02:51.6]} 4... cxb2 {[%clk 0:02:51.1]} 5. Bxb2
{[%clk 0:02:52.5]} 5... d6 {[%clk 0:02:49.8]} 6. Nf3 {[%clk 0:02:46.9]} 6... Be6
{[%clk 0:02:47]} 7. Bxe6 {[%clk 0:02:40.2]} 7... fxe6 {[%clk 0:02:46.7]} 8. Qb3
{[%clk 0:02:41.1]} 8... Qd7 {[%clk 0:02:46.5]} 9. Qxb7 {[%clk 0:02:40]} 9... Qc6
{[%clk 0:02:41.9]} 10. Qc8+ {[%clk 0:02:39.5]} 10... Ke7 {[%clk 0:02:41.4]} 11.
Ng5 {[%clk 0:02:33]} 11... Nd7 {[%clk 0:02:40.4]} 12. Qxa8 {[%clk 0:01:32.9]}
12... Qxa8 {[%clk 0:02:37.9]} 13. O-O {[%clk 0:01:33.8]} 13... h6 {[%clk
0:02:36.7]} 14. Nf3 {[%clk 0:01:33.2]} 14... Ngf6 {[%clk 0:02:36.2]} 15. Nh4
{[%clk 0:01:33.6]} 15... Kf7 {[%clk 0:02:35.1]} 16. f4 {[%clk 0:01:33.5]} 16...
Qxe4 {[%clk 0:02:34.5]} 17. Nc3 {[%clk 0:01:33.2]} 17... Qe3+ {[%clk 0:02:34.2]}
18. Kh1 {[%clk 0:01:33.1]} 18... Qb6 {[%clk 0:02:33.1]} 19. Rab1 {[%clk
0:01:32.9]} 19... Qa6 {[%clk 0:02:32.2]} 20. f5 {[%clk 0:01:31.5]} 20... Ne5
{[%clk 0:02:30.8]} 21. fxe6+ {[%clk 0:01:30.4]} 21... Kxe6 {[%clk 0:02:30.9]}
22. Nf5 {[%clk 0:01:30]} 22... g6 {[%clk 0:02:30.5]} 23. Ne3 {[%clk 0:01:29.8]}
23... Bg7 {[%clk 0:02:29.2]} 24. a4 {[%clk 0:01:28.1]} 24... Nfg4 {[%clk
0:02:28.5]} 25. Ned5 {[%clk 0:01:24]} 25... Qc4 {[%clk 0:02:22.5]} 26. h3 {[%clk
0:01:23.8]} 26... c6 {[%clk 0:02:21]} 27. Nf4+ {[%clk 0:01:20.3]} 27... Kd7
{[%clk 0:02:19]} 28. Ba1 {[%clk 0:01:18.2]} 28... Kc8 {[%clk 0:01:58.2]} 29.
Rfc1 {[%clk 0:01:17.6]} 29... Nf2+ {[%clk 0:01:56.8]} 30. Kg1 {[%clk 0:01:16.8]}
30... Qxf4 {[%clk 0:01:56.7]} 31. Nd5 {[%clk 0:01:15.8]} 31... Nxh3+ {[%clk
0:01:55.7]} 32. gxh3 {[%clk 0:01:15.5]} 32... Qg3+ {[%clk 0:01:54.8]} 33. Kh1
{[%clk 0:01:14.1]} 33... Qf3+ {[%clk 0:01:54.9]} 34. Kg1 {[%clk 0:01:15]} 34...
Qxd5 {[%clk 0:01:54.4]} 35. Re1 {[%clk 0:01:14.5]} 35... Nf3+ {[%clk 0:01:54]}
36. Kf2 {[%clk 0:01:14.3]} 36... Bxa1 {[%clk 0:01:54.3]} 37. Red1 {[%clk
0:01:12.2]} 37... Bd4+ {[%clk 0:01:51.6]} 38. Ke2 {[%clk 0:01:10.7]} 38... Qe4+
{[%clk 0:01:49.7]} 39. Kf1 {[%clk 0:01:09.1]} 39... Nh2# {[%clk 0:01:50.6]} 0-1

[Event "Late-Titled-Tuesday-Blitz-November-28-2023"]
[Site "Chess.com"]
[Date "2023.11.28"]
[Round "5"]
[White "GMForgacs"]
[Black "expii"]
[Result "1-0"]
[WhiteElo "2461"]
[BlackElo "2239"]
[TimeControl "180+1"]
[EndTime "14:51:01 PST"]
[Termination "GMForgacs won by resignation"]

1. a3 {[%clk 0:02:59.6]} 1... d5 {[%clk 0:02:59.6]} 2. Nf3 {[%clk 0:02:57.4]}
2... Nf6 {[%clk 0:02:58.1]} 3. g3 {[%clk 0:02:56.1]} 3... c5 {[%clk 0:02:58]} 4.
Bg2 {[%clk 0:02:56.3]} 4... Nc6 {[%clk 0:02:58.5]} 5. O-O {[%clk 0:02:56.6]}
5... d4 {[%clk 0:02:59.1]} 6. d3 {[%clk 0:02:56.7]} 6... e5 {[%clk 0:02:59.5]}
7. e4 {[%clk 0:02:56.3]} 7... dxe3 {[%clk 0:02:56.6]} 8. fxe3 {[%clk 0:02:56.3]}
8... e4 {[%clk 0:02:54.6]} 9. Ng5 {[%clk 0:02:47.9]} 9... exd3 {[%clk
0:02:51.7]} 10. cxd3 {[%clk 0:02:45.9]} 10... Be7 {[%clk 0:02:51.5]} 11. Nc3
{[%clk 0:02:41.9]} 11... O-O {[%clk 0:02:50.3]} 12. e4 {[%clk 0:02:34.6]} 12...
h6 {[%clk 0:02:43.2]} 13. Nf3 {[%clk 0:02:33.7]} 13... Bg4 {[%clk 0:02:39.3]}
14. Be3 {[%clk 0:02:31.4]} 14... Bxf3 {[%clk 0:02:38.2]} 15. Bxf3 {[%clk
0:02:31.4]} 15... Ne5 {[%clk 0:02:36.8]} 16. Be2 {[%clk 0:02:30]} 16... Nc6
{[%clk 0:02:25.1]} 17. Qd2 {[%clk 0:02:27.9]} 17... Nd4 {[%clk 0:02:12.5]} 18.
Rae1 {[%clk 0:02:09]} 18... b5 {[%clk 0:01:51.2]} 19. Bd1 {[%clk 0:02:04.3]}
19... b4 {[%clk 0:01:46.5]} 20. axb4 {[%clk 0:02:04.4]} 20... cxb4 {[%clk
0:01:47.4]} 21. Ne2 {[%clk 0:02:05]} 21... Nxe2+ {[%clk 0:01:14]} 22. Qxe2
{[%clk 0:02:05.9]} 22... Qa5 {[%clk 0:01:02.3]} 23. Bb3 {[%clk 0:02:01]} 23...
Bc5 {[%clk 0:00:53]} 24. d4 {[%clk 0:01:58.7]} 24... Bb6 {[%clk 0:00:51.6]} 25.
e5 {[%clk 0:01:55]} 25... Nd7 {[%clk 0:00:52.2]} 26. Qg4 {[%clk 0:01:42.2]} 1-0

[Event "Late-Titled-Tuesday-Blitz-November-28-2023"]
[Site "Chess.com"]
[Date "2023.11.28"]
[Round "5"]
[White "ChessSwole"]
[Black "Haykoooo0o"]
[Result "1-0"]
[WhiteElo "2681"]
[BlackElo "2431"]
[TimeControl "180+1"]
[EndTime "14:51:04 PST"]
[Termination "ChessSwole won by resignation"]

1. e4 {[%clk 0:03:00.4]} 1... c6 {[%clk 0:02:57.6]} 2. d4 {[%clk 0:03:00.1]}
2... d5 {[%clk 0:02:47.9]} 3. e5 {[%clk 0:03:00.6]} 3... c5 {[%clk 0:02:47.8]}
4. dxc5 {[%clk 0:02:57]} 4... e6 {[%clk 0:02:48.1]} 5. a3 {[%clk 0:02:56.5]}
5... Bxc5 {[%clk 0:02:47.8]} 6. Qg4 {[%clk 0:02:57.2]} 6... Ne7 {[%clk 0:02:27]}
7. b4 {[%clk 0:02:54.7]} 7... Bb6 {[%clk 0:02:25.8]} 8. Nf3 {[%clk 0:02:53.3]}
8... Nf5 {[%clk 0:02:07.8]} 9. Bd3 {[%clk 0:02:46.2]} 9... O-O {[%clk
0:02:05.4]} 10. O-O {[%clk 0:02:37.2]} 10... Nc6 {[%clk 0:02:02]} 11. Bb2 {[%clk
0:02:36]} 11... Nce7 {[%clk 0:01:52.1]} 12. Nbd2 {[%clk 0:02:33.5]} 12... Bd7
{[%clk 0:01:51.5]} 13. Rad1 {[%clk 0:02:22.1]} 13... Qe8 {[%clk 0:01:44.9]} 14.
c4 {[%clk 0:02:18.8]} 14... Rc8 {[%clk 0:01:33.5]} 15. c5 {[%clk 0:02:18.3]}
15... Bc7 {[%clk 0:01:32.9]} 16. Rfe1 {[%clk 0:02:17.1]} 16... Bb5 {[%clk
0:01:26.3]} 17. Bb1 {[%clk 0:02:16.8]} 17... a5 {[%clk 0:01:21]} 18. Nd4 {[%clk
0:02:06.1]} 18... Nxd4 {[%clk 0:01:18.7]} 19. Bxd4 {[%clk 0:02:07]} 19... axb4
{[%clk 0:01:17.8]} 20. axb4 {[%clk 0:02:07.9]} 20... Nc6 {[%clk 0:01:08.7]} 21.
Bb2 {[%clk 0:02:07]} 21... b6 {[%clk 0:01:04.5]} 22. Nf3 {[%clk 0:02:06.8]}
22... bxc5 {[%clk 0:00:51.8]} 23. Bxh7+ {[%clk 0:02:00.7]} 23... Kxh7 {[%clk
0:00:47.2]} 24. Qh5+ {[%clk 0:02:01.4]} 24... Kg8 {[%clk 0:00:47.2]} 25. Ng5
{[%clk 0:02:01.9]} 25... Bd3 {[%clk 0:00:26]} 26. Rxd3 {[%clk 0:02:01.5]} 1-0

[Event "Late-Titled-Tuesday-Blitz-November-28-2023"]
[Site "Chess.com"]
[Date "2023.11.28"]
[Round "5"]
[White "LastHeroJr"]
[Black "Cidonka"]
[Result "0-1"]
[WhiteElo "2421"]
[BlackElo "2288"]
[TimeControl "180+1"]
[EndTime "14:51:05 PST"]
[Termination "Cidonka won by resignation"]

1. e4 {[%clk 0:02:57.4]} 1... c6 {[%clk 0:02:46.6]} 2. d4 {[%clk 0:02:54.1]}
2... d5 {[%clk 0:02:46.6]} 3. exd5 {[%clk 0:02:55]} 3... cxd5 {[%clk 0:02:46.6]}
4. c3 {[%clk 0:02:55.9]} 4... Nc6 {[%clk 0:02:46.1]} 5. Nf3 {[%clk 0:02:52.1]}
5... Nf6 {[%clk 0:02:45.5]} 6. Bd3 {[%clk 0:02:51.3]} 6... Bg4 {[%clk
0:02:44.8]} 7. O-O {[%clk 0:02:51.2]} 7... e6 {[%clk 0:02:45]} 8. Bg5 {[%clk
0:02:50.9]} 8... Bd6 {[%clk 0:02:44.5]} 9. Nbd2 {[%clk 0:02:50.8]} 9... O-O
{[%clk 0:02:43.6]} 10. Qc2 {[%clk 0:02:50.6]} 10... h6 {[%clk 0:02:41.9]} 11.
Bh4 {[%clk 0:02:50.9]} 11... Rc8 {[%clk 0:02:38.3]} 12. a3 {[%clk 0:02:50.3]}
12... Bb8 {[%clk 0:02:34.3]} 13. h3 {[%clk 0:02:49.3]} 13... Bxf3 {[%clk
0:02:34.3]} 14. Nxf3 {[%clk 0:02:49]} 14... a6 {[%clk 0:02:28.2]} 15. Rfe1
{[%clk 0:02:48]} 15... Ne7 {[%clk 0:02:23.7]} 16. Bxf6 {[%clk 0:02:47.2]} 16...
gxf6 {[%clk 0:02:24.6]} 17. Qd2 {[%clk 0:02:47.7]} 17... Kg7 {[%clk 0:02:22.9]}
18. Bc2 {[%clk 0:02:47.7]} 18... f5 {[%clk 0:02:22.4]} 19. Ne5 {[%clk
0:02:46.2]} 19... Qd6 {[%clk 0:02:19.6]} 20. Qe3 {[%clk 0:02:41.8]} 20... Ng6
{[%clk 0:02:15.5]} 21. Nxg6 {[%clk 0:02:38.1]} 21... fxg6 {[%clk 0:02:15.5]} 22.
Kf1 {[%clk 0:02:20.9]} 22... Rfe8 {[%clk 0:02:13]} 23. Qf3 {[%clk 0:02:18]}
23... b5 {[%clk 0:01:57]} 24. Re5 {[%clk 0:02:17]} 24... Qd7 {[%clk 0:01:53.8]}
25. Re3 {[%clk 0:02:15.8]} 25... a5 {[%clk 0:01:53]} 26. Rae1 {[%clk 0:02:15.6]}
26... b4 {[%clk 0:01:52.9]} 27. axb4 {[%clk 0:02:15.1]} 27... axb4 {[%clk
0:01:53.2]} 28. Qd1 {[%clk 0:02:13.5]} 28... Qd6 {[%clk 0:01:43.2]} 29. Ba4
{[%clk 0:02:07.2]} 29... Re7 {[%clk 0:01:42.4]} 30. Qf3 {[%clk 0:02:03.8]} 30...
Qa6+ {[%clk 0:01:37.9]} 31. c4 {[%clk 0:01:57.6]} 31... dxc4 {[%clk 0:01:19.5]}
32. b3 {[%clk 0:01:54.8]} 32... cxb3+ {[%clk 0:01:17.6]} 33. Qe2 {[%clk
0:01:46.9]} 33... Qxa4 {[%clk 0:01:16.9]} 34. Rxe6 {[%clk 0:01:47.2]} 34... Rxe6
{[%clk 0:01:11.9]} 35. Qxe6 {[%clk 0:01:47]} 35... Rf8 {[%clk 0:01:12.6]} 36.
Qd7+ {[%clk 0:01:43.4]} 36... Qxd7 {[%clk 0:01:12.2]} 0-1

[Event "Late-Titled-Tuesday-Blitz-November-28-2023"]
[Site "Chess.com"]
[Date "2023.11.28"]
[Round "5"]
[White "Chessbard1972"]
[Black "cthake"]
[Result "1-0"]
[WhiteElo "2387"]
[BlackElo "1919"]
[TimeControl "180+1"]
[EndTime "14:51:29 PST"]
[Termination "Chessbard1972 won by resignation"]

1. d4 {[%clk 0:03:00.9]} 1... Nf6 {[%clk 0:02:59.2]} 2. c4 {[%clk 0:03:00.4]}
2... g6 {[%clk 0:02:57.2]} 3. Nf3 {[%clk 0:03:00.1]} 3... d5 {[%clk 0:02:56.5]}
4. cxd5 {[%clk 0:02:59.2]} 4... Nxd5 {[%clk 0:02:55.1]} 5. g3 {[%clk 0:02:59.1]}
5... Bg7 {[%clk 0:02:54.1]} 6. Bg2 {[%clk 0:02:59.7]} 6... O-O {[%clk
0:02:52.5]} 7. O-O {[%clk 0:02:59.7]} 7... c6 {[%clk 0:02:36]} 8. e4 {[%clk
0:02:54.2]} 8... Nb6 {[%clk 0:02:34.5]} 9. h3 {[%clk 0:02:53.6]} 9... N8d7
{[%clk 0:02:19.3]} 10. Nc3 {[%clk 0:02:52]} 10... c5 {[%clk 0:02:18.8]} 11. d5
{[%clk 0:02:47.9]} 11... Ne5 {[%clk 0:02:16.4]} 12. Nxe5 {[%clk 0:02:45.1]}
12... Bxe5 {[%clk 0:02:15.8]} 13. Bh6 {[%clk 0:02:45.3]} 13... Bg7 {[%clk
0:02:13.2]} 14. Bxg7 {[%clk 0:02:44.9]} 14... Kxg7 {[%clk 0:02:13.4]} 15. b3
{[%clk 0:02:40.3]} 15... f6 {[%clk 0:01:51.4]} 16. Rc1 {[%clk 0:02:38.4]} 16...
e5 {[%clk 0:01:49]} 17. Ne2 {[%clk 0:02:31]} 17... Qd6 {[%clk 0:01:41.1]} 18.
Qd2 {[%clk 0:02:25.4]} 18... Bd7 {[%clk 0:01:38.3]} 19. Rfd1 {[%clk 0:02:19.7]}
19... Rac8 {[%clk 0:01:34.4]} 20. a4 {[%clk 0:02:15.7]} 20... c4 {[%clk
0:01:31.5]} 21. a5 {[%clk 0:02:15.9]} 21... Na8 {[%clk 0:01:15.4]} 22. bxc4
{[%clk 0:02:15.9]} 22... b6 {[%clk 0:01:13.4]} 23. a6 {[%clk 0:02:04.7]} 23...
Nc7 {[%clk 0:01:12]} 24. Qa2 {[%clk 0:02:04.5]} 24... Qc5 {[%clk 0:01:08.3]} 25.
Nc3 {[%clk 0:01:59.4]} 25... Ne8 {[%clk 0:01:07]} 26. Na4 {[%clk 0:01:58.4]}
26... Qa5 {[%clk 0:01:03.1]} 27. Nc3 {[%clk 0:01:58.1]} 27... Qc5 {[%clk
0:00:54.4]} 28. Nb5 {[%clk 0:01:54.7]} 28... Bxb5 {[%clk 0:00:39.7]} 29. cxb5
{[%clk 0:01:54.7]} 29... Qxc1 {[%clk 0:00:39.7]} 30. Rxc1 {[%clk 0:01:55]} 30...
Rxc1+ {[%clk 0:00:40]} 31. Kh2 {[%clk 0:01:55.9]} 31... Nd6 {[%clk 0:00:37.5]}
32. Qa3 {[%clk 0:01:54.1]} 1-0

[Event "Late-Titled-Tuesday-Blitz-November-28-2023"]
[Site "Chess.com"]
[Date "2023.11.28"]
[Round "5"]
[White "GMJustin"]
[Black "Actuary44"]
[Result "0-1"]
[WhiteElo "2319"]
[BlackElo "2465"]
[TimeControl "180+1"]
[EndTime "14:51:34 PST"]
[Termination "Actuary44 won on time"]

1. e4 {[%clk 0:02:28.3]} 1... b6 {[%clk 0:02:59.8]} 2. Nc3 {[%clk 0:02:27.3]}
2... Bb7 {[%clk 0:02:54.3]} 3. Nf3 {[%clk 0:02:24.8]} 3... e6 {[%clk 0:02:54.5]}
4. d4 {[%clk 0:02:19.9]} 4... Nf6 {[%clk 0:02:54.7]} 5. e5 {[%clk 0:02:15.6]}
5... Ne4 {[%clk 0:02:54.1]} 6. Nxe4 {[%clk 0:02:09.1]} 6... Bxe4 {[%clk
0:02:55]} 7. Be2 {[%clk 0:02:08.1]} 7... Be7 {[%clk 0:02:52.1]} 8. O-O {[%clk
0:02:02.7]} 8... O-O {[%clk 0:02:51.5]} 9. Nd2 {[%clk 0:01:43.5]} 9... Bb7
{[%clk 0:02:42.3]} 10. Bf3 {[%clk 0:01:41.4]} 10... Qc8 {[%clk 0:02:42]} 11. Ne4
{[%clk 0:01:33.4]} 11... d5 {[%clk 0:02:38.8]} 12. exd6 {[%clk 0:00:57.3]} 12...
cxd6 {[%clk 0:02:39.7]} 13. Bg5 {[%clk 0:00:57.1]} 13... f6 {[%clk 0:02:29.1]}
14. Bf4 {[%clk 0:00:50.6]} 14... e5 {[%clk 0:02:25.5]} 15. Bc1 {[%clk
0:00:29.7]} 15... d5 {[%clk 0:02:24.6]} 16. Nc3 {[%clk 0:00:21.5]} 16... e4
{[%clk 0:02:24.4]} 17. Be2 {[%clk 0:00:21.3]} 17... Nd7 {[%clk 0:02:21.5]} 18.
Bf4 {[%clk 0:00:17.6]} 18... f5 {[%clk 0:02:18.2]} 19. Qd2 {[%clk 0:00:13.8]}
19... h6 {[%clk 0:02:14.2]} 20. Nb5 {[%clk 0:00:12.6]} 20... g5 {[%clk
0:02:12.6]} 21. Bd6 {[%clk 0:00:12]} 21... Qd8 {[%clk 0:02:01.1]} 22. h4 {[%clk
0:00:06.9]} 22... a6 {[%clk 0:01:57.4]} 23. Bxe7 {[%clk 0:00:04.3]} 23... Qxe7
{[%clk 0:01:58.3]} 24. Nc3 {[%clk 0:00:02.6]} 24... f4 {[%clk 0:01:55.3]} 25.
hxg5 {[%clk 0:00:02.5]} 25... Qxg5 {[%clk 0:01:51.7]} 0-1

[Event "Late-Titled-Tuesday-Blitz-November-28-2023"]
[Site "Chess.com"]
[Date "2023.11.28"]
[Round "5"]
[White "joppie2"]
[Black "Thormento16"]
[Result "1-0"]
[WhiteElo "2994"]
[BlackElo "2407"]
[TimeControl "180+1"]
[EndTime "14:52:02 PST"]
[Termination "joppie2 won by checkmate"]

1. e4 {[%clk 0:03:00.9]} 1... c5 {[%clk 0:03:00]} 2. Nf3 {[%clk 0:03:00.9]} 2...
d6 {[%clk 0:03:00.4]} 3. Bb5+ {[%clk 0:03:01]} 3... Bd7 {[%clk 0:03:00.3]} 4.
Bxd7+ {[%clk 0:03:01.4]} 4... Nxd7 {[%clk 0:03:01.2]} 5. O-O {[%clk 0:03:02.1]}
5... Ngf6 {[%clk 0:03:01.9]} 6. Re1 {[%clk 0:03:02.5]} 6... a6 {[%clk
0:03:01.6]} 7. c3 {[%clk 0:03:03]} 7... e6 {[%clk 0:03:01.3]} 8. d4 {[%clk
0:03:03.9]} 8... Be7 {[%clk 0:03:01.3]} 9. e5 {[%clk 0:03:02.6]} 9... Nd5 {[%clk
0:02:43.5]} 10. exd6 {[%clk 0:03:01.8]} 10... Bxd6 {[%clk 0:02:42.4]} 11. c4
{[%clk 0:03:01.4]} 11... Nb4 {[%clk 0:02:20.7]} 12. a3 {[%clk 0:02:59.2]} 12...
Nc6 {[%clk 0:02:20.1]} 13. d5 {[%clk 0:02:59.4]} 13... Nce5 {[%clk 0:02:18.9]}
14. Nc3 {[%clk 0:02:56.8]} 14... O-O {[%clk 0:02:09.6]} 15. Ne4 {[%clk 0:02:53]}
15... Nxf3+ {[%clk 0:02:08.4]} 16. Qxf3 {[%clk 0:02:53]} 16... Ne5 {[%clk
0:02:01.7]} 17. Qh3 {[%clk 0:02:53.4]} 17... exd5 {[%clk 0:02:00]} 18. Nxd6
{[%clk 0:02:52.8]} 18... Qxd6 {[%clk 0:02:00.5]} 19. Bf4 {[%clk 0:02:53.5]}
19... Rfe8 {[%clk 0:01:46.4]} 20. Qg3 {[%clk 0:02:42.9]} 20... f6 {[%clk
0:01:45.6]} 21. cxd5 {[%clk 0:02:43.5]} 21... Qxd5 {[%clk 0:01:37.7]} 22. Rad1
{[%clk 0:02:43]} 22... Qe6 {[%clk 0:01:11.8]} 23. h3 {[%clk 0:02:38.6]} 23...
Rad8 {[%clk 0:01:09.8]} 24. Rxd8 {[%clk 0:02:37.5]} 24... Rxd8 {[%clk
0:01:10.2]} 25. Bxe5 {[%clk 0:02:38.4]} 25... fxe5 {[%clk 0:01:10.3]} 26. Rxe5
{[%clk 0:02:39.3]} 26... Qd6 {[%clk 0:01:03.1]} 27. Kh2 {[%clk 0:02:33.6]} 27...
h6 {[%clk 0:01:01.2]} 28. f4 {[%clk 0:02:31.2]} 28... Rf8 {[%clk 0:00:57.5]} 29.
Qb3+ {[%clk 0:02:26.3]} 29... Kh8 {[%clk 0:00:51.1]} 30. Qe3 {[%clk 0:02:19.2]}
30... b6 {[%clk 0:00:46]} 31. h4 {[%clk 0:02:17.1]} 31... Qf6 {[%clk 0:00:44.4]}
32. g3 {[%clk 0:02:17.3]} 32... Rd8 {[%clk 0:00:42.1]} 33. h5 {[%clk 0:02:17.9]}
33... Qd6 {[%clk 0:00:40.9]} 34. Kh3 {[%clk 0:02:17.8]} 34... Qd1 {[%clk
0:00:38.5]} 35. Qe4 {[%clk 0:02:06.9]} 35... Qd7+ {[%clk 0:00:36.2]} 36. Kh4
{[%clk 0:02:06.3]} 36... Qd1 {[%clk 0:00:35.8]} 37. Re7 {[%clk 0:02:05.9]} 37...
Qd6 {[%clk 0:00:25.2]} 38. Re8+ {[%clk 0:01:56]} 38... Rxe8 {[%clk 0:00:24.9]}
39. Qxe8+ {[%clk 0:01:56.9]} 39... Kh7 {[%clk 0:00:25.6]} 40. Qe4+ {[%clk
0:01:57.5]} 40... Kg8 {[%clk 0:00:25.1]} 41. g4 {[%clk 0:01:58.1]} 41... Qd2
{[%clk 0:00:22.8]} 42. g5 {[%clk 0:01:58.2]} 42... hxg5+ {[%clk 0:00:15.9]} 43.
fxg5 {[%clk 0:01:59.1]} 43... Qxb2 {[%clk 0:00:15.5]} 44. Qe8+ {[%clk
0:01:58.5]} 44... Kh7 {[%clk 0:00:14.9]} 45. g6+ {[%clk 0:01:59.4]} 45... Kh6
{[%clk 0:00:15.3]} 46. Qh8# {[%clk 0:02:00.3]} 1-0

[Event "Late-Titled-Tuesday-Blitz-November-28-2023"]
[Site "Chess.com"]
[Date "2023.11.28"]
[Round "5"]
[White "VladimirBugayev"]
[Black "szachmistrz2500"]
[Result "0-1"]
[WhiteElo "2308"]
[BlackElo "2470"]
[TimeControl "180+1"]
[EndTime "14:52:06 PST"]
[Termination "szachmistrz2500 won by resignation"]

1. e4 {[%clk 0:03:00.9]} 1... c5 {[%clk 0:02:59.2]} 2. Nc3 {[%clk 0:03:00.7]}
2... e6 {[%clk 0:02:58.5]} 3. f4 {[%clk 0:03:00.3]} 3... Nc6 {[%clk 0:02:56.7]}
4. Nf3 {[%clk 0:02:57.6]} 4... d5 {[%clk 0:02:52.9]} 5. Bb5 {[%clk 0:02:56.6]}
5... Ne7 {[%clk 0:02:48.8]} 6. Ne5 {[%clk 0:02:55.4]} 6... Bd7 {[%clk
0:02:35.4]} 7. Nxd7 {[%clk 0:02:47.2]} 7... Qxd7 {[%clk 0:02:34.6]} 8. O-O
{[%clk 0:02:46.8]} 8... dxe4 {[%clk 0:02:30.3]} 9. Nxe4 {[%clk 0:02:34.5]} 9...
Qd4+ {[%clk 0:02:21.6]} 10. Nf2 {[%clk 0:02:34.6]} 10... a6 {[%clk 0:02:20.3]}
11. Bxc6+ {[%clk 0:02:30.8]} 11... Nxc6 {[%clk 0:02:19.8]} 12. f5 {[%clk
0:02:16.9]} 12... exf5 {[%clk 0:02:14.3]} 13. d3 {[%clk 0:02:12.9]} 13... Be7
{[%clk 0:02:08.6]} 14. Qf3 {[%clk 0:02:12.8]} 14... g6 {[%clk 0:02:02.4]} 15.
Be3 {[%clk 0:02:12.5]} 15... Qd7 {[%clk 0:01:57.2]} 16. Bh6 {[%clk 0:01:41.2]}
16... O-O-O {[%clk 0:01:56.3]} 17. b4 {[%clk 0:01:37.1]} 17... cxb4 {[%clk
0:01:51.5]} 18. a3 {[%clk 0:01:36.4]} 18... bxa3 {[%clk 0:01:50.6]} 19. Rfb1
{[%clk 0:01:36.4]} 19... Rhe8 {[%clk 0:01:41.2]} 20. Bd2 {[%clk 0:01:24.8]}
20... Bc5 {[%clk 0:01:33.4]} 21. Kf1 {[%clk 0:01:15.3]} 21... Nd4 {[%clk
0:01:25.5]} 22. Qd1 {[%clk 0:01:10.4]} 22... Re2 {[%clk 0:01:19.3]} 23. Bb4
{[%clk 0:01:08.5]} 23... Ba7 {[%clk 0:00:57.3]} 24. c3 {[%clk 0:01:08.3]} 24...
Rde8 {[%clk 0:00:48.7]} 25. cxd4 {[%clk 0:01:05.6]} 25... Qxd4 {[%clk
0:00:48.7]} 26. Nh3 {[%clk 0:00:58.1]} 26... Rf2+ {[%clk 0:00:44.2]} 27. Kg1
{[%clk 0:00:51.4]} 27... Rd2+ {[%clk 0:00:43.8]} 28. Kh1 {[%clk 0:00:51.5]}
28... Rxd1+ {[%clk 0:00:43.9]} 29. Rxd1 {[%clk 0:00:50.6]} 29... Qxb4 {[%clk
0:00:44.1]} 0-1

[Event "Late-Titled-Tuesday-Blitz-November-28-2023"]
[Site "Chess.com"]
[Date "2023.11.28"]
[Round "5"]
[White "DawnofEpiphany"]
[Black "dropstoneDP"]
[Result "0-1"]
[WhiteElo "2649"]
[BlackElo "2959"]
[TimeControl "180+1"]
[EndTime "14:52:24 PST"]
[Termination "dropstoneDP won by resignation"]

1. Nf3 {[%clk 0:03:00.9]} 1... d5 {[%clk 0:02:57.6]} 2. g3 {[%clk 0:03:00.6]}
2... Nf6 {[%clk 0:02:57.5]} 3. Bg2 {[%clk 0:03:00.9]} 3... e6 {[%clk 0:02:58.4]}
4. O-O {[%clk 0:03:00.6]} 4... Be7 {[%clk 0:02:59.3]} 5. c4 {[%clk 0:02:59.5]}
5... O-O {[%clk 0:02:59.6]} 6. b3 {[%clk 0:02:59]} 6... d4 {[%clk 0:02:59.9]} 7.
e3 {[%clk 0:02:57]} 7... c5 {[%clk 0:03:00.5]} 8. exd4 {[%clk 0:02:50.4]} 8...
cxd4 {[%clk 0:03:01.4]} 9. Ne5 {[%clk 0:02:37.7]} 9... Qc7 {[%clk 0:02:59.4]}
10. Re1 {[%clk 0:02:35.7]} 10... Nbd7 {[%clk 0:02:58.6]} 11. Nf3 {[%clk
0:02:29.8]} 11... Bc5 {[%clk 0:02:54]} 12. a3 {[%clk 0:02:29.3]} 12... a5 {[%clk
0:02:52.9]} 13. d3 {[%clk 0:02:29]} 13... e5 {[%clk 0:02:50.9]} 14. Nbd2 {[%clk
0:02:28.3]} 14... h6 {[%clk 0:02:35.1]} 15. Rb1 {[%clk 0:02:27.5]} 15... Qd6
{[%clk 0:02:34.2]} 16. Qc2 {[%clk 0:02:14.4]} 16... Ra6 {[%clk 0:02:25.7]} 17.
Nh4 {[%clk 0:01:47.5]} 17... Nb8 {[%clk 0:02:22.7]} 18. b4 {[%clk 0:01:44.3]}
18... axb4 {[%clk 0:02:21.4]} 19. axb4 {[%clk 0:01:44.1]} 19... Bxb4 {[%clk
0:02:22]} 20. c5 {[%clk 0:01:16.7]} 20... Qxc5 {[%clk 0:02:16.2]} 21. Qxc5
{[%clk 0:01:16.2]} 21... Bxc5 {[%clk 0:02:17.1]} 22. Rxe5 {[%clk 0:01:14.7]}
22... Nbd7 {[%clk 0:02:08.5]} 23. Re1 {[%clk 0:01:10.5]} 23... Rb6 {[%clk
0:02:02.6]} 24. Ra1 {[%clk 0:00:57.3]} 24... Bb4 {[%clk 0:02:01.2]} 25. Nf5
{[%clk 0:00:48.6]} 25... Re6 {[%clk 0:01:58.3]} 26. Rxe6 {[%clk 0:00:37.1]}
26... fxe6 {[%clk 0:01:59.2]} 27. Nxd4 {[%clk 0:00:37.6]} 27... Bc3 {[%clk
0:01:59]} 28. N2b3 {[%clk 0:00:20.5]} 28... Bxa1 {[%clk 0:01:58.7]} 29. Nxa1
{[%clk 0:00:21.4]} 29... Nc5 {[%clk 0:01:59.2]} 30. Ba3 {[%clk 0:00:20.7]} 30...
b6 {[%clk 0:01:59.7]} 31. Nab3 {[%clk 0:00:21]} 31... Nxb3 {[%clk 0:01:59.1]}
32. Nxb3 {[%clk 0:00:20.6]} 32... Rf7 {[%clk 0:01:58.7]} 33. f4 {[%clk
0:00:20.4]} 33... Bb7 {[%clk 0:01:58.9]} 34. Bh3 {[%clk 0:00:19.9]} 34... Bd5
{[%clk 0:01:57.5]} 35. Nd4 {[%clk 0:00:20.2]} 35... Ra7 {[%clk 0:01:58.1]} 36.
Bb4 {[%clk 0:00:16.8]} 36... Ra1+ {[%clk 0:01:57.6]} 37. Kf2 {[%clk 0:00:16.5]}
37... Ra2+ {[%clk 0:01:57.5]} 38. Ke3 {[%clk 0:00:17]} 38... Kf7 {[%clk
0:01:55.9]} 39. Ne2 {[%clk 0:00:14.4]} 39... Bb7 {[%clk 0:01:51.3]} 40. Be1
{[%clk 0:00:08.5]} 40... Nd5+ {[%clk 0:01:50.4]} 41. Kf2 {[%clk 0:00:08.8]}
41... Ba6 {[%clk 0:01:50.1]} 0-1